[Event "4NCL Div 1 2024-25"]
[Site "England"]
[Date "2025.02.16"]
[Round "6.1"]
[White "Royal, Shreyas"]
[Black "Palliser, Richard J D"]
[Result "1-0"]
[Annotator "ChessBase"]
[ECO "E27"]
[WhiteElo "2520"]
[BlackElo "2369"]
[PlyCount "89"]
[EventDate "2024.11.23"]
[EventType "team-tourn"]
[EventCountry "ENG"]
[SourceTitle "playchess.com"]
[Source "ChessBase"]
[SourceQuality "1"]
[TimeControl "40/6000+30:3000+30"]

1. d4 {[%emt 0:10:02]} Nf6 {[%emt 0:12:30]} 2. c4 {[%emt 0:00:08]} e6 {[%emt 0:00:03]} 3. Nc3 {[%emt 0:01:36]} Bb4 {[%emt 0:00:06]} 4. f3 {[%emt 0:00:05]} O-O {[%emt 0:00:23]} 5. a3 {[%emt 0:00:05]} Bxc3+ {[%emt 0:00:04]} 6. bxc3 {[%emt 0:00:07]} Ne8 {[%emt 0:00:12]} 7. e4 {[%emt 0:00:18]} b6 {[%emt 0:00:17]} 8. Bd3 {[%emt 0:01:01]} Nc6 {[%emt 0:05:29]} 9. a4 {[%emt 0:10:30]} Ba6 {[%emt 0:02:53]} 10. Ba3 {[%emt 0:10:17]} d6 {[%emt 0:02:52]} 11. Nh3 {[%emt 0:01:27]} Na5 {[%emt 0:06:47]} 12. Qe2 {[%emt 0:00:41]} c5 {[%emt 0:00:35]} 13. d5 {[%emt 0:02:54]} exd5 {[%emt 0:05:56]} 14. cxd5 {[%emt 0:00:24]} Bxd3 {[%emt 0:00:06]} 15. Qxd3 {[%emt 0:00:03]} Qh4+ {[%emt 0:00:51]} 16. Nf2 {[%emt 0:00:37]} f5 {[%emt 0:00:47]} 17. O-O {[%emt 0:00:53]} Nf6 {[%emt 0:31:17]} 18. Rae1 {[%emt 0:03:09]} fxe4 {[%emt 0:05:05]} 19. Nxe4 {[%emt 0:00:41]} Rae8 {[%emt 0:03:34]} 20. g3 {[%emt 0:00:47]} Qh5 {[%emt 0:00:26]} 21. Nxf6+ {[%emt 0:00:05]} Rxf6 {[%emt 0:00:23]} 22. Kg2 {[%emt 0:00:34]} Rff8 {[%emt 0:01:48]} 23. f4 {[%emt 0:07:33]} Qg6 {[%emt 0:07:27]} 24. Qxg6 {[%emt 0:09:45]} hxg6 {[%emt 0:00:05]} 25. Re6 {[%emt 0:00:04]} Rxe6 {[%emt 0:07:25]} 26. dxe6 {[%emt 0:00:01]} Rf6 {[%emt 0:00:29]} 27. Re1 {[%emt 0:07:19]} Kf8 {[%emt 0:00:07]} 28. e7+ {[%emt 0:04:33]} Ke8 {[%emt 0:00:04]} 29. Kf2 {[%emt 0:00:32]} Rf7 {[%emt 0:05:38]} 30. Re6 {[%emt 0:00:07]} Rxe7 {[%emt 0:00:04]} 31. Rxg6 {[%emt 0:00:06]} Kf7 {[%emt 0:00:02]} 32. f5 {[%emt 0:00:28]} Re4 {[%emt 0:03:46]} 33. Bc1 {[%emt 0:01:36]} Rxa4 {[%emt 0:08:43]} 34. Rxd6 {[%emt 0:00:06]} Nc4 {[%emt 0:00:05]} 35. Rd7+ {[%emt 0:03:54]} Kf6 {[%emt 0:00:04]} 36. g4 {[%emt 0:02:30]} Ra2+ {[%emt 0:01:16]} 37. Kg3 {[%emt 0:00:04]} Rc2 {[%emt 0:00:12]} 38. Bf4 {[%emt 0:00:34]} Rxc3+ {[%emt 0:00:30]} 39. Kh4 {[%emt 0:00:02]} Ne3 {[%emt 0:00:25]} 40. Bg5+ {[%emt 0:00:11]} Ke5 {[%emt 0:00:21]} 41. Bxe3 {[%emt 0:59:25]} Rxe3 {[%emt 0:50:35]} 42. Rxg7 {[%emt 0:00:06]} Kf6 {[%emt 0:00:00]} 43. Rxa7 {[%emt 0:00:00]} c4 {[%emt 0:00:00]} 44. Rc7 {[%emt 0:00:00]} b5 {[%emt 0:00:00]} 45. Rc6+ {[%emt 0:00:00]} 1-0

[Event "4NCL Div 1 2024-25"]
[Site "England"]
[Date "2025.02.16"]
[Round "6.1"]
[White "Harvey, Marcus R"]
[Black "Lagarde, Maxime"]
[Result "0-1"]
[Annotator "ChessBase"]
[ECO "A22"]
[WhiteElo "2491"]
[BlackElo "2604"]
[PlyCount "134"]
[EventDate "2024.11.23"]
[EventType "team-tourn"]
[EventCountry "ENG"]
[SourceTitle "playchess.com"]
[Source "ChessBase"]
[SourceQuality "1"]
[TimeControl "40/6000+30:3000+30"]

1. c4 {[%emt 0:25:39]} e5 {[%emt 0:10:08]} 2. Nc3 {[%emt 0:00:04]} Nf6 {[%emt 0:00:03]} 3. g3 {[%emt 0:00:04]} Bb4 {[%emt 0:00:07]} 4. Bg2 {[%emt 0:00:04]} O-O {[%emt 0:00:06]} 5. Nf3 {[%emt 0:00:35]} Re8 {[%emt 0:00:04]} 6. O-O {[%emt 0:00:05]} c6 {[%emt 0:00:14]} 7. d3 {[%emt 0:00:50]} h6 {[%emt 0:00:16]} 8. Qb3 {[%emt 0:03:02]} a5 {[%emt 0:01:30]} 9. a3 {[%emt 0:01:03]} Bc5 {[%emt 0:01:03]} 10. Nd2 {[%emt 0:02:49]} d6 {[%emt 0:04:35]} 11. Nde4 {[%emt 0:00:51]} Nbd7 {[%emt 0:21:23]} 12. Qc2 {[%emt 0:01:27]} Nxe4 {[%emt 0:00:43]} 13. Nxe4 {[%emt 0:00:09]} a4 {[%emt 0:00:09]} 14. Be3 {[%emt 0:01:42]} Bxe3 {[%emt 0:01:29]} 15. fxe3 {[%emt 0:00:01]} Nc5 {[%emt 0:00:29]} 16. Nxc5 {[%emt 0:01:19]} dxc5 {[%emt 0:00:17]} 17. Rf2 {[%emt 0:05:34]} Be6 {[%emt 0:02:48]} 18. Raf1 {[%emt 0:05:04]} Qg5 {[%emt 0:03:12]} 19. Qc1 {[%emt 0:00:26]} Rf8 {[%emt 0:01:38]} 20. Be4 {[%emt 0:01:36]} f5 {[%emt 0:04:16]} 21. Bg2 {[%emt 0:01:00]} Rf6 {[%emt 0:00:22]} 22. e4 {[%emt 0:08:25]} f4 {[%emt 0:04:32]} 23. gxf4 {[%emt 0:11:51]} exf4 {[%emt 0:00:06]} 24. e3 {[%emt 0:01:39]} fxe3 {[%emt 0:00:06]} 25. Rxf6 {[%emt 0:00:24]} Bh3 {[%emt 0:04:35]} 26. Qc2 {[%emt 0:03:24]} gxf6 {[%emt 0:00:06]} 27. Kh1 {[%emt 0:00:23]} Bg4 {[%emt 0:15:08]} 28. Bf3 {[%emt 0:00:34]} Kf7 {[%emt 0:00:43]} 29. Qe2 {[%emt 0:14:29]} Rg8 {[%emt 0:02:22]} 30. Bxg4 {[%emt 0:03:19]} Qxg4 {[%emt 0:00:06]} 31. Qxg4 {[%emt 0:03:27]} Rxg4 {[%emt 0:00:04]} 32. Rf3 {[%emt 0:00:50]} e2 {[%emt 0:00:51]} 33. Re3 {[%emt 0:00:03]} Rf4 {[%emt 0:00:08]} 34. Kg2 {[%emt 0:00:03]} Rf1 {[%emt 0:00:04]} 35. Rxe2 {[%emt 0:00:02]} Rd1 {[%emt 0:00:07]} 36. e5 {[%emt 0:02:24]} Rxd3 {[%emt 0:03:34]} 37. Rf2 {[%emt 0:00:09]} f5 {[%emt 0:00:48]} 38. Rxf5+ {[%emt 0:00:23]} Ke6 {[%emt 0:00:03]} 39. Rh5 {[%emt 0:00:25]} Rb3 {[%emt 0:00:44]} 40. Kf2 {[%emt 0:01:05]} Rxb2+ {[%emt 0:08:05]} 41. Ke3 {[%emt 0:50:05]} Rc2 {[%emt 0:51:03]} 42. Kd3 {[%emt 0:00:44]} Rg2 {[%emt 0:00:04]} 43. Rxh6+ {[%emt 0:00:00]} Kxe5 {[%emt 0:00:00]} 44. Rh5+ {[%emt 0:00:00]} Kd6 {[%emt 0:00:00]} 45. Rh7 {[%emt 0:00:00]} b5 {[%emt 0:00:00]} 46. Rh6+ {[%emt 0:00:00]} Kc7 {[%emt 0:00:00]} 47. cxb5 {[%emt 0:00:00]} cxb5 {[%emt 0:00:00]} 48. h4 {[%emt 0:00:00]} Kb7 {[%emt 0:00:00]} 49. h5 {[%emt 0:00:34]} Rh2 {[%emt 0:00:00]} 50. Ke4 {[%emt 0:00:58]} b4 {[%emt 0:00:00]} 51. Rg6 {[%emt 0:05:02]} b3 {[%emt 0:00:00]} 52. h6 {[%emt 0:01:16]} Rh1 {[%emt 0:05:02]} 53. Rg2 {[%emt 0:03:43]} Kc6 {[%emt 0:00:27]} 54. Kd3 {[%emt 0:00:35]} Rxh6 {[%emt 0:00:54]} 55. Kc3 {[%emt 0:03:17]} Kb5 {[%emt 0:01:19]} 56. Kb2 {[%emt 0:01:07]} Rh3 {[%emt 0:00:06]} 57. Kc1 {[%emt 0:02:44]} c4 {[%emt 0:00:55]} 58. Kb1 {[%emt 0:00:05]} c3 {[%emt 0:00:24]} 59. Rg5+ {[%emt 0:00:06]} Kc4 {[%emt 0:00:21]} 60. Rg4+ {[%emt 0:00:07]} Kd5 {[%emt 0:00:26]} 61. Rg1 {[%emt 0:00:06]} Rh2 {[%emt 0:00:12]} 62. Rg5+ {[%emt 0:00:50]} Ke4 {[%emt 0:00:09]} 63. Rg4+ {[%emt 0:00:45]} Kf5 {[%emt 0:00:06]} 64. Rg1 {[%emt 0:00:06]} Rb2+ {[%emt 0:00:05]} 65. Kc1 {[%emt 0:00:18]} Ra2 {[%emt 0:00:04]} 66. Rf1+ {[%emt 0:00:18]} Ke6 {[%emt 0:00:13]} 67. Re1+ {[%emt 0:00:11]} Kd7 {[%emt 0:00:06]} 0-1

[Event "4NCL Div 1 2024-25"]
[Site "England"]
[Date "2025.02.16"]
[Round "6.2"]
[White "Camacho Collados, Marcos"]
[Black "Erdos, Viktor"]
[Result "1/2-1/2"]
[Annotator "ChessBase"]
[ECO "A49"]
[WhiteElo "2459"]
[BlackElo "2533"]
[PlyCount "34"]
[EventDate "2024.11.23"]
[EventType "team-tourn"]
[EventCountry "ENG"]
[SourceTitle "playchess.com"]
[Source "ChessBase"]
[SourceQuality "1"]
[TimeControl "40/6000+30:3000+30"]

1. Nf3 {[%emt 0:10:03]} Nf6 {[%emt 0:11:02]} 2. g3 {[%emt 0:00:09]} g6 {[%emt 0:00:11]} 3. b3 {[%emt 0:00:11]} Bg7 {[%emt 0:00:06]} 4. Bb2 {[%emt 0:00:05]} d6 {[%emt 0:00:05]} 5. d4 {[%emt 0:00:11]} c5 {[%emt 0:00:28]} 6. Bg2 {[%emt 0:00:34]} cxd4 {[%emt 0:00:24]} 7. Nxd4 {[%emt 0:00:38]} d5 {[%emt 0:00:06]} 8. c4 {[%emt 0:03:06]} dxc4 {[%emt 0:01:39]} 9. bxc4 {[%emt 0:00:48]} O-O {[%emt 0:00:47]} 10. O-O {[%emt 0:00:26]} Qb6 {[%emt 0:00:06]} 11. Qb3 {[%emt 0:08:59]} Nfd7 {[%emt 0:00:15]} 12. Rd1 {[%emt 0:07:16]} Nc6 {[%emt 0:01:46]} 13. e3 {[%emt 0:36:50]} Na5 {[%emt 0:02:36]} 14. Qxb6 {[%emt 0:03:32]} axb6 {[%emt 0:02:25]} 15. Nd2 {[%emt 0:07:56]} Ne5 {[%emt 0:12:43]} 16. Bf1 {[%emt 0:00:07]} Bd7 {[%emt 0:00:39]} 17. Rab1 {[%emt 0:02:27]} Rfc8 {[%emt 0:08:16]} 1/2-1/2

[Event "4NCL Div 1 2024-25"]
[Site "England"]
[Date "2025.02.16"]
[Round "6.2"]
[White "Pert, Richard G"]
[Black "Speelman, Jon S"]
[Result "1/2-1/2"]
[Annotator "ChessBase"]
[ECO "A41"]
[WhiteElo "2399"]
[BlackElo "2499"]
[PlyCount "40"]
[EventDate "2024.11.23"]
[EventType "team-tourn"]
[EventCountry "ENG"]
[SourceTitle "playchess.com"]
[Source "ChessBase"]
[SourceQuality "1"]
[TimeControl "40/6000+30:3000+30"]

1. d4 {[%emt 0:10:04]} Nf6 {[%emt 0:10:27]} 2. Nf3 {[%emt 0:00:05]} d6 {[%emt 0:00:11]} 3. Nc3 {[%emt 0:04:26]} Bg4 {[%emt 0:04:25]} 4. e4 {[%emt 0:01:42]} e6 {[%emt 0:00:58]} 5. h3 {[%emt 0:02:46]} Bh5 {[%emt 1:26:59]} 6. Qe2 {[%emt 0:08:32]} c6 {[%emt 0:00:00]} 7. g4 {[%emt 0:01:49]} Bg6 {[%emt 0:00:00]} 8. h4 {[%emt 0:04:54]} h5 {[%emt 0:00:00]} 9. g5 {[%emt 0:00:48]} Nfd7 {[%emt 0:00:00]} 10. Bh3 {[%emt 0:01:19]} Be7 {[%emt 0:00:00]} 11. Bf4 {[%emt 0:02:05]} O-O {[%emt 0:00:00]} 12. Bg3 {[%emt 0:02:59]} d5 {[%emt 0:00:00]} 13. a3 {[%emt 0:02:32]} Re8 {[%emt 0:00:00]} 14. O-O {[%emt 0:07:11]} Na6 {[%emt 0:00:00]} 15. Rfe1 {[%emt 0:02:48]} Nc7 {[%emt 0:00:00]} 16. Rad1 {[%emt 0:00:46]} a6 {[%emt 0:00:00]} 17. Ne5 {[%emt 0:05:51]} Nxe5 {[%emt 0:00:00]} 18. dxe5 {[%emt 0:00:05]} Nb5 {[%emt 0:00:00]} 19. Nxb5 {[%emt 0:03:03]} axb5 {[%emt 0:00:00]} 20. exd5 {[%emt 0:00:33]} cxd5 {[%emt 0:00:00]} 1/2-1/2

[Event "4NCL Div 1 2024-25"]
[Site "England"]
[Date "2025.02.16"]
[Round "6.3"]
[White "Kantor, Gergely"]
[Black "Navrotescu, Andreea"]
[Result "1-0"]
[Annotator "ChessBase"]
[ECO "E28"]
[WhiteElo "2558"]
[BlackElo "2338"]
[PlyCount "101"]
[EventDate "2024.11.23"]
[EventType "team-tourn"]
[EventCountry "ENG"]
[SourceTitle "playchess.com"]
[Source "ChessBase"]
[SourceQuality "1"]
[TimeControl "40/6000+30:3000+30"]

1. d4 {[%emt 0:10:38]} Nf6 {[%emt 0:10:08]} 2. c4 {[%emt 0:00:02]} e6 {[%emt 0:00:05]} 3. Nc3 {[%emt 0:00:09]} Bb4 {[%emt 0:00:09]} 4. e3 {[%emt 0:00:03]} O-O {[%emt 0:00:22]} 5. a3 {[%emt 0:00:03]} Bxc3+ {[%emt 0:00:33]} 6. bxc3 {[%emt 0:00:04]} b6 {[%emt 0:00:22]} 7. Bd3 {[%emt 0:00:10]} Bb7 {[%emt 0:06:00]} 8. f3 {[%emt 0:00:16]} c5 {[%emt 0:00:54]} 9. e4 {[%emt 0:00:08]} h6 {[%emt 0:01:33]} 10. Nh3 {[%emt 0:06:16]} Nc6 {[%emt 0:00:31]} 11. Be3 {[%emt 0:00:32]} d6 {[%emt 0:01:10]} 12. O-O {[%emt 0:04:50]} e5 {[%emt 0:03:39]} 13. d5 {[%emt 0:02:30]} Ne7 {[%emt 0:01:59]} 14. a4 {[%emt 0:03:19]} Bc8 {[%emt 0:01:29]} 15. Nf2 {[%emt 0:03:25]} a5 {[%emt 0:01:45]} 16. g3 {[%emt 0:02:04]} Nh7 {[%emt 0:10:23]} 17. f4 {[%emt 0:01:40]} f6 {[%emt 0:01:51]} 18. f5 {[%emt 0:03:49]} Bd7 {[%emt 0:01:56]} 19. h4 {[%emt 0:15:43]} Ra7 {[%emt 0:05:30]} 20. Ra2 {[%emt 0:04:06]} Nc8 {[%emt 0:03:36]} 21. g4 {[%emt 0:03:15]} Kf7 {[%emt 0:11:52]} 22. Nh3 {[%emt 0:05:07]} Rh8 {[%emt 0:01:50]} 23. Rg2 {[%emt 0:06:24]} Qe8 {[%emt 0:02:22]} 24. g5 {[%emt 0:03:27]} Bxa4 {[%emt 0:10:42]} 25. Qb1 {[%emt 0:05:44]} hxg5 {[%emt 0:00:33]} 26. hxg5 {[%emt 0:00:13]} Nf8 {[%emt 0:02:34]} 27. Rf3 {[%emt 0:00:23]} Bd7 {[%emt 0:01:25]} 28. g6+ {[%emt 0:01:49]} Ke7 {[%emt 0:00:27]} 29. Ng5 {[%emt 0:00:17]} Ba4 {[%emt 0:05:02]} 30. Nf7 {[%emt 0:01:10]} Rh5 {[%emt 0:02:49]} 31. Be2 {[%emt 0:04:42]} Kd7 {[%emt 0:01:33]} 32. Bf2 {[%emt 0:01:44]} Kc7 {[%emt 0:07:33]} 33. Re3 {[%emt 0:02:50]} Rg5 {[%emt 0:00:22]} 34. Nxg5 {[%emt 0:00:24]} fxg5 {[%emt 0:00:02]} 35. Rh3 {[%emt 0:00:23]} Nd7 {[%emt 0:01:45]} 36. Rh7 {[%emt 0:00:35]} Qe7 {[%emt 0:00:40]} 37. Qa2 {[%emt 0:00:16]} b5 {[%emt 0:01:57]} 38. cxb5 {[%emt 0:00:08]} Ncb6 {[%emt 0:00:07]} 39. Be3 {[%emt 0:00:58]} Nf6 {[%emt 0:01:47]} 40. Bxg5 {[%emt 0:00:18]} c4 {[%emt 0:00:19]} 41. Bxc4 {[%emt 0:50:34]} Bd1 {[%emt 0:50:17]} 42. Be2 {[%emt 0:07:28]} Bxe2 {[%emt 0:00:53]} 43. Rxe2 {[%emt 0:01:51]} a4 {[%emt 0:00:44]} 44. c4 {[%emt 0:03:14]} Ra8 {[%emt 0:01:08]} 45. Reh2 {[%emt 0:02:07]} Nbd7 {[%emt 0:01:00]} 46. Rh8 {[%emt 0:01:54]} Ra7 {[%emt 0:01:18]} 47. Be3 {[%emt 0:05:03]} Nxe4 {[%emt 0:01:17]} 48. b6+ {[%emt 0:00:00]} Nxb6 {[%emt 0:00:00]} 49. Bxb6+ {[%emt 0:00:00]} Kxb6 {[%emt 0:00:00]} 50. Qb1+ {[%emt 0:00:00]} Kc7 {[%emt 0:00:00]} 51. Qb8+ {[%emt 0:00:00]} 1-0

[Event "4NCL Div 1 2024-25"]
[Site "England"]
[Date "2025.02.16"]
[Round "6.3"]
[White "Murphy, Conor E"]
[Black "Kirk, Ezra"]
[Result "0-1"]
[Annotator "ChessBase"]
[ECO "B50"]
[WhiteElo "2444"]
[BlackElo "2386"]
[PlyCount "118"]
[EventDate "2024.11.23"]
[EventType "team-tourn"]
[EventCountry "ENG"]
[SourceTitle "playchess.com"]
[Source "ChessBase"]
[SourceQuality "1"]
[TimeControl "40/6000+30:3000+30"]

1. e4 {[%emt 0:12:27]} c5 {[%emt 0:10:06]} 2. Nf3 {[%emt 0:00:16]} d6 {[%emt 0:00:09]} 3. Bc4 {[%emt 0:00:17]} Nf6 {[%emt 0:03:36]} 4. d3 {[%emt 0:00:33]} e6 {[%emt 0:02:34]} 5. O-O {[%emt 0:00:25]} Be7 {[%emt 0:00:51]} 6. Re1 {[%emt 0:01:54]} Nbd7 {[%emt 0:01:24]} 7. c3 {[%emt 0:02:28]} O-O {[%emt 0:04:24]} 8. Bb3 {[%emt 0:03:14]} b5 {[%emt 0:06:19]} 9. a4 {[%emt 0:06:15]} b4 {[%emt 0:03:02]} 10. Nbd2 {[%emt 0:09:51]} Bb7 {[%emt 0:04:41]} 11. Nf1 {[%emt 0:01:30]} a5 {[%emt 0:06:52]} 12. Ng3 {[%emt 0:01:21]} Rc8 {[%emt 0:00:32]} 13. Bf4 {[%emt 0:06:13]} Re8 {[%emt 0:08:43]} 14. Bc2 {[%emt 0:03:06]} Bf8 {[%emt 0:02:34]} 15. h4 {[%emt 0:01:31]} e5 {[%emt 0:08:39]} 16. Bd2 {[%emt 0:04:43]} h6 {[%emt 0:08:20]} 17. Bb3 {[%emt 0:03:12]} d5 {[%emt 0:00:38]} 18. exd5 {[%emt 0:07:48]} Bxd5 {[%emt 0:00:06]} 19. Bxd5 {[%emt 0:03:38]} Nxd5 {[%emt 0:00:06]} 20. Qb3 {[%emt 0:00:13]} N5b6 {[%emt 0:00:38]} 21. Qc2 {[%emt 0:08:22]} Qf6 {[%emt 0:02:02]} 22. Re2 {[%emt 0:02:34]} Qd6 {[%emt 0:08:20]} 23. Rae1 {[%emt 0:01:36]} Qc6 {[%emt 0:09:03]} 24. b3 {[%emt 0:04:59]} Bd6 {[%emt 0:00:57]} 25. cxb4 {[%emt 0:08:15]} cxb4 {[%emt 0:01:52]} 26. Qxc6 {[%emt 0:00:13]} Rxc6 {[%emt 0:00:04]} 27. Nd4 {[%emt 0:07:25]} Rcc8 {[%emt 0:00:36]} 28. Nb5 {[%emt 0:02:03]} Bf8 {[%emt 0:05:38]} 29. d4 {[%emt 0:00:20]} f6 {[%emt 0:04:57]} 30. Nf5 {[%emt 0:04:31]} Red8 {[%emt 0:01:10]} 31. dxe5 {[%emt 0:03:43]} Nxe5 {[%emt 0:00:23]} 32. Be3 {[%emt 0:00:19]} Nd5 {[%emt 0:01:33]} 33. Bd4 {[%emt 0:00:14]} Nd3 {[%emt 0:03:05]} 34. Rf1 {[%emt 0:01:16]} Bc5 {[%emt 0:01:55]} 35. Bxc5 {[%emt 0:00:28]} Nxc5 {[%emt 0:00:11]} 36. Rd2 {[%emt 0:00:33]} Nc3 {[%emt 0:00:52]} 37. Nbd6 {[%emt 0:00:38]} Ra8 {[%emt 0:01:00]} 38. Ne7+ {[%emt 0:00:30]} Kh7 {[%emt 0:00:13]} 39. Nc6 {[%emt 0:00:31]} Nxb3 {[%emt 0:00:17]} 40. Rd3 {[%emt 0:00:28]} Rd7 {[%emt 0:00:54]} 41. Re1 {[%emt 0:25:25]} Nc5 {[%emt 0:31:55]} 42. Rd4 {[%emt 0:00:48]} Ra6 {[%emt 0:01:35]} 43. Nf5 {[%emt 0:08:13]} Rxc6 {[%emt 0:00:37]} 44. Rxd7 {[%emt 0:00:04]} Nxd7 {[%emt 0:00:07]} 45. Re7 {[%emt 0:00:04]} b3 {[%emt 0:05:47]} 46. Rxg7+ {[%emt 0:00:34]} Kh8 {[%emt 0:00:04]} 47. Rxd7 {[%emt 0:00:06]} b2 {[%emt 0:00:04]} 48. Rd8+ {[%emt 0:00:22]} Kh7 {[%emt 0:00:07]} 49. Rd7+ {[%emt 0:00:05]} Kg6 {[%emt 0:02:55]} 50. Ne7+ {[%emt 0:07:47]} Kh5 {[%emt 0:00:30]} 51. Rb7 {[%emt 0:06:49]} Rc7 {[%emt 0:03:24]} 52. Rxc7 {[%emt 0:01:01]} b1=Q+ {[%emt 0:00:07]} 53. Kh2 {[%emt 0:00:03]} Qb4 {[%emt 0:01:02]} 54. Nf5 {[%emt 0:01:33]} Ne2 {[%emt 0:04:18]} 55. g3 {[%emt 0:04:22]} Qb6 {[%emt 0:01:48]} 56. Ng7+ {[%emt 0:00:38]} Kg4 {[%emt 0:02:10]} 57. Kg2 {[%emt 0:00:39]} Nf4+ {[%emt 0:00:37]} 58. gxf4 {[%emt 0:00:27]} Qxc7 {[%emt 0:00:39]} 59. f3+ {[%emt 0:00:02]} Kxh4 {[%emt 0:00:07]} 0-1

[Event "4NCL Div 1 2024-25"]
[Site "England"]
[Date "2025.02.16"]
[Round "6.4"]
[White "Fodor, Tamas Jr."]
[Black "Wadsworth, Matthew J"]
[Result "1-0"]
[Annotator "ChessBase"]
[ECO "E51"]
[WhiteElo "2509"]
[BlackElo "2461"]
[PlyCount "87"]
[EventDate "2024.11.23"]
[EventType "team-tourn"]
[EventCountry "ENG"]
[SourceTitle "playchess.com"]
[Source "ChessBase"]
[SourceQuality "1"]
[TimeControl "40/6000+30:3000+30"]

1. d4 {[%emt 0:10:10]} Nf6 {[%emt 0:10:22]} 2. c4 {[%emt 0:00:06]} e6 {[%emt 0:00:07]} 3. Nc3 {[%emt 0:00:05]} Bb4 {[%emt 0:00:05]} 4. e3 {[%emt 0:00:04]} O-O {[%emt 0:00:23]} 5. Bd2 {[%emt 0:00:04]} b6 {[%emt 0:00:46]} 6. Nf3 {[%emt 0:00:07]} d5 {[%emt 0:01:12]} 7. cxd5 {[%emt 0:01:04]} exd5 {[%emt 0:00:09]} 8. Bd3 {[%emt 1:32:50]} c5 {[%emt 0:01:46]} 9. h3 {[%emt 0:00:00]} Ba6 {[%emt 0:09:24]} 10. Bxa6 {[%emt 0:00:00]} Nxa6 {[%emt 0:00:06]} 11. O-O {[%emt 0:00:00]} c4 {[%emt 0:02:58]} 12. Ne5 {[%emt 0:00:00]} Qe8 {[%emt 0:03:13]} 13. Ng4 {[%emt 0:00:00]} Nxg4 {[%emt 0:03:40]} 14. hxg4 {[%emt 0:00:00]} Nc7 {[%emt 0:02:00]} 15. f3 {[%emt 0:00:00]} b5 {[%emt 0:06:27]} 16. Qc2 {[%emt 0:00:00]} Qe7 {[%emt 0:05:34]} 17. Rae1 {[%emt 0:00:00]} Bd6 {[%emt 0:03:36]} 18. f4 {[%emt 0:00:00]} b4 {[%emt 0:06:33]} 19. Ne2 {[%emt 0:00:00]} g6 {[%emt 0:07:29]} 20. g5 {[%emt 0:00:00]} h6 {[%emt 0:02:20]} 21. gxh6 {[%emt 0:00:00]} Ne8 {[%emt 0:07:58]} 22. e4 {[%emt 0:00:00]} dxe4 {[%emt 0:04:47]} 23. f5 {[%emt 0:00:00]} Qh4 {[%emt 0:06:39]} 24. Bf4 {[%emt 0:00:00]} g5 {[%emt 0:01:09]} 25. Be5 {[%emt 0:00:00]} Rc8 {[%emt 0:00:22]} 26. f6 {[%emt 0:00:00]} Bxe5 {[%emt 0:02:28]} 27. dxe5 {[%emt 0:00:00]} Rc5 {[%emt 0:00:06]} 28. Nd4 {[%emt 0:00:00]} Rxe5 {[%emt 0:00:26]} 29. Nc6 {[%emt 0:00:00]} Re6 {[%emt 0:01:27]} 30. Ne7+ {[%emt 0:00:00]} Kh7 {[%emt 0:00:34]} 31. Nf5 {[%emt 0:00:00]} Qg4 {[%emt 0:01:02]} 32. Re3 {[%emt 0:00:00]} Re5 {[%emt 0:07:31]} 33. Rg3 {[%emt 0:00:00]} Qh5 {[%emt 0:00:02]} 34. Qd2 {[%emt 0:00:00]} g4 {[%emt 0:02:02]} 35. Ne3 {[%emt 0:00:00]} Rg8 {[%emt 0:02:44]} 36. Rf4 {[%emt 0:00:00]} Reg5 {[%emt 0:01:38]} 37. Qxb4 {[%emt 0:00:00]} R5g6 {[%emt 0:04:00]} 38. Qe7 {[%emt 0:00:00]} Rxh6 {[%emt 0:02:02]} 39. Rf5 {[%emt 0:00:00]} Qh1+ {[%emt 0:01:38]} 40. Kf2 {[%emt 0:00:00]} Kh8 {[%emt 0:00:24]} 41. Nxg4 {[%emt 0:52:36]} Rh7 {[%emt 0:25:41]} 42. Rg5 {[%emt 0:00:00]} Rxg5 {[%emt 0:02:15]} 43. Qxe8+ {[%emt 0:00:00]} Rg8 {[%emt 0:00:05]} 44. Qxg8+ {[%emt 0:00:00]} 1-0

[Event "4NCL Div 1 2024-25"]
[Site "England"]
[Date "2025.02.16"]
[Round "6.4"]
[White "Chow, Samuel"]
[Black "Jaracz, Pawel"]
[Result "1/2-1/2"]
[Annotator "ChessBase"]
[ECO "E15"]
[WhiteElo "2348"]
[BlackElo "2473"]
[PlyCount "46"]
[EventDate "2024.11.23"]
[EventType "team-tourn"]
[EventCountry "ENG"]
[SourceTitle "playchess.com"]
[Source "ChessBase"]
[SourceQuality "1"]
[TimeControl "40/6000+30:3000+30"]

1. d4 {[%emt 0:10:08]} Nf6 {[%emt 0:10:15]} 2. c4 {[%emt 0:00:15]} e6 {[%emt 0:00:07]} 3. Nf3 {[%emt 0:00:25]} b6 {[%emt 0:00:43]} 4. g3 {[%emt 0:00:54]} Ba6 {[%emt 0:00:26]} 5. b3 {[%emt 0:00:39]} Bb4+ {[%emt 0:00:12]} 6. Bd2 {[%emt 0:00:29]} Be7 {[%emt 0:00:06]} 7. Nc3 {[%emt 0:00:47]} d5 {[%emt 0:00:13]} 8. cxd5 {[%emt 0:00:34]} exd5 {[%emt 0:00:05]} 9. Bg2 {[%emt 0:00:13]} O-O {[%emt 0:00:09]} 10. O-O {[%emt 0:00:10]} Re8 {[%emt 0:00:21]} 11. a3 {[%emt 0:04:39]} c5 {[%emt 0:03:21]} 12. Bf4 {[%emt 0:04:12]} Nc6 {[%emt 0:31:16]} 13. dxc5 {[%emt 0:08:57]} d4 {[%emt 0:09:06]} 14. Na4 {[%emt 0:02:01]} Bxc5 {[%emt 0:02:13]} 15. Re1 {[%emt 0:03:00]} Ne4 {[%emt 0:13:38]} 16. Ne5 {[%emt 0:08:53]} Nxe5 {[%emt 0:00:52]} 17. Bxe4 {[%emt 0:01:37]} Rc8 {[%emt 0:00:25]} 18. Bxe5 {[%emt 0:12:29]} Rxe5 {[%emt 0:00:09]} 19. Nxc5 {[%emt 0:00:09]} bxc5 {[%emt 0:01:54]} 20. Bf3 {[%emt 0:04:29]} Qf6 {[%emt 0:02:22]} 21. Kg2 {[%emt 0:14:26]} Rce8 {[%emt 0:01:17]} 22. Qd2 {[%emt 0:06:47]} Qe7 {[%emt 0:04:07]} 23. b4 {[%emt 0:04:49]} Bb7 {[%emt 0:06:08]} 1/2-1/2